{"text_format":"2","workbook":"xlsx","n_sheets":2,"sheets":["2023","Gráficos"],"not_rendered":{"charts":11,"images":0,"macros":0,"external_links":0,"defined_names":2,"comments":1,"pivot_tables":0},"unopened":[],"bounds":{"document_bytes":16777216,"sheet_cells":100000,"run_cost":"one","rows_first":2000,"rows_last":500,"rows_between":2000,"halvings":0,"cell_chars":16384,"cell_head_chars":4096},"cells_cut":0,"cells_raw":0,"read":"whole","date_system":"1900"}

{"sheet":"2023","index":0,"n_rows":36,"n_cols":26,"rows_kept":36,"cut":false,"hidden":false,"merged":[[38,22,38,24],[0,11,0,14],[1,15,2,15],[1,23,1,25],[0,22,0,25],[1,16,2,16],[1,17,2,17],[1,18,2,18],[1,19,2,19],[1,21,2,21],[1,22,2,22],[0,15,0,21],[1,12,2,12],[1,13,2,13],[1,1,2,1],[1,2,2,2],[1,9,2,9],[1,10,2,10],[1,14,2,14],[1,3,2,3],[1,4,1,6],[1,7,2,7],[1,8,2,8],[1,11,2,11],[39,23,40,25],[43,22,44,23],[0,0,0,10],[14,1,17,1],[3,1,13,1],[18,1,21,1],[30,1,35,1],[26,1,29,1],[22,1,25,1],[26,0,29,0],[30,0,35,0],[3,0,13,0],[14,0,17,0],[18,0,21,0],[22,0,25,0],[1,0,2,0]]}
["AVALIAÇÃO DO PLANO DE GESTÃO DE RISCOS DE CORRUPÇÃO E INFRAÇÕES CONEXAS - 2023",{"$nulls":10},"Implementação das medidas de minimização dos riscos (a)",null,null,null,"Avaliação da Implementação das medidas\n(b)",{"$nulls":6},"Avaliação final das medidas/Plano"]
["Unidade","Área","Atividade/Âmbito ","Identificação do Risco ","Classificação do Risco",null,null,"Medida Preventiva/ Minimização do risco","Resultados esperados ","Calendarização","Responsável\n","Implementado na totalidade\n(2)","Implementado parcialmente\n(1)","Não implementado\n(0)","Fundamentação para a não implementação/implementação parcial","Sem avaliação\n(0)","Não Satisfatório\n(1)","Pouco Satisfatório\n(2)","Satisfatório\n(3)","Muito satisfatório\n(4)","Ponderação (c)","\nRESULTADO DA\nIMPLEMENTAÇÃO DA\nMEDIDA","Avaliação\n(a) x (b) x (c)","Avaliação final "]
[{"$nulls":4},"PO (1) \nprobabilidade de ocorrência","GC (2) \nGravidade da consequência","GR (3)\ngrau de risco",{"$nulls":13},"X1 - se GR 1\nX2 - se GR 2\nX3 - se GR 3",null,null,"Quantitativa","Qantitativa","Observações"]
["Conselho Administrativo/Conselho Executivo/Serviços Administrativos","Área de Pessoal","Recrutamento de pessoal docente ","-  Falsificação de declarações emitidas\n(contagem de tempo de serviço errada)\n",2,3,2,"- Validação pela Coordenadora Técnica do tempo de serviço emitido na declaração, verificado pelo registo biográfico; ","Não existência de candidatos favorecidos por falsas declarações.","A partir de fevereiro/2023","Coordenadora Técnica",2,"-","-","-","-","-","-","-",4,{"$f":"+G4","v":2},"Minimizado o GR",16,2.6666666666666665,"Satisfatório","Diminui em 1 o GR"]
[null,null,"Recrutamento de pessoal não docente","´-favorecimento de um candidato através de conhecimento da prova e da entrevista profissional\n",2,3,3,"´-declaração de compromisso de honra que não possuem um grau de amizade ou inimizade que possam interferir na avaliação dos candidatos (após a lista de candidatos admitidos) preenchido por todos os elementos do juri;\n´-integração no júri de um elemento externo à escola;\n´-questões colocadas na entrevista serem idênticas para todos os candidatos;\n","Não existência de candidatos favorecidos pelos metódos de seleção, sem recursos hierárquicos","A partir de fevereiro/2023","Presidente do Júri (elemento do Conselho Executivo)","-","-",0,"A não implementação deve-se ao fato da inexistência de provas ou entrevistas de seleção ou recrutamento, no ano de 2023.",0,"-","-","-","-",3,{"$f":"+Z5","v":"-"},0,0,"Sem avaliação do resultado","-"]
[null,null,"Faltas (justificação)","-Entrega de documentos falsos para justificação de faltas;\n- Não serem registadas as faltas dadas por trabalhador(es);\n- Incorreção no registo da falta (tipo de falta justificada).",2,2,2,"- em caso de dúvida da legalidade/autenticidade do documento, os serviços da área de pessoal entrarão em contacto com a entidade emissora para averiguar a autenticidade desse mesmo documento;\n- Verificação no Despacho diário, pela Presidente do Conselho Executivo e pela Coordenadora Técnica, das faltas dadas e respetivo registo.","Assegurar os procedimentos legais de justificação de faltas","A partir de fevereiro/2023","Presidente do Conselho Executivo e Coordenadora Técnica",2,"-","-","-","-","-","-","-",4,2,"Minimizado o GR",16,2.6666666666666665,"Satisfatório","Diminui em 1 o GR"]
[null,null,"Assiduidade (Pessoal docente e não docente)","\n- Ausência de comunicação à área de vencimentos, das faltas dadas pelo Pessoal Docente e não Docente.",2,2,2,"- Preenchimento pela Encarregada Operacional Geral de um mapa de faltas de todo o Pessoal Docente (entrega diária à área de Pessoal Docente) e não Docente (entrega mensal à área de Pessoal Não Docente)  ","Não existência de faltas por processar.","A partir de fevereiro/2023","Encarregada Operacional Geral",2,"-","-","-","-","-","-","-",4,2,"Minimizado o GR",16,2.6666666666666665,"Satisfatório","Diminui em 1 o GR"]
[null,null,"Mapa de férias","- Gozo de mais dias de férias a que o trabalhador tem direito, devido à não contabilização dos dias de atestado médico pedidos para substituição de férias.",2,2,2,"- O preenchimento do documento \"Licença para férias\" é verificado pela Coordenadora Técnica (ou por quem esta designar) e pela assistente administrativa que lança as faltas nos registos de assiduidade.","Não existência de dias de férias gozados indevidamente.","A partir de fevereiro/2023","Coordenadora Técnica (ou por quem esta designar)",2,"-","-","-","-","-","-","-",4,2,"Minimizado o GR",16,2.6666666666666665,"Satisfatório","Diminui em 1 o GR"]
[null,null,"Licenças","- Não entrega do cartão da ADSE, continuando o trabalhador a usufruir dos direitos de beneficiário.",1,3,2,"- Caso a licença não permita a manutenção da ADSE, o serviço deve proceder ao cancelamento da inscrição através da plataforma ADSEdireta.","Não utilizar o cartão de beneficiário da ADSE de forma a causar prejuízos financeiros à mesma.","A partir de fevereiro/2023","Técnica Superior e a Assistente Técnica da área de vencimentos",2,"-","-","-","-","-","-","-",4,2,"Minimizado o GR",16,2.6666666666666665,"Satisfatório","Diminui em 1 o GR"]
[null,null,"Mobilidades/Requisições","- Continuação de pagamento de remuneração por falta de comunicação entre as entidades.",1,3,2," Pedir parecer prévia à tutela sobre qual o serviço que vai processar o vencimento do trabalhador em mobilidade ou requisitado.","Não existência de duplicação de processamentos/pagamentos de vencimentos.","A partir de fevereiro/2023","Presidente do Conselho Administrativo/Coordenadora Técnica",2,"-","-","-","-","-","-","-",4,2,"Minimizado o GR",16,2.6666666666666665,"Satisfatório","Diminui em 1 o GR"]
[null,null,"Acumulação de funções","Acumulação de funções públicas e/ou privadas não autorizadas ou passíveis de colidir com o exercício de funções na escola.",1,3,2,"- Entrega anual de uma declaração de verificação períodica de acumulação de funções, por todos os trabalhadores.","- \nAssegurar a regulação e conformidade das acumulações de funções públicas e privadas.\n","A partir de fevereiro/2023","Presidente do Conselho Executivo","-",1,"-","A implementação parcial deve-se ao fato da não entrega da declaração de verificação periódica de acumulação de funções pelos trabalhadores ausentes, por motivo de doença/licença parental.","-","-",2,"-","-",2,"Diminui ligeiramente o GR",4,0.66666666666666663,"Não satisfatório ","mantém o mesmo GR"]
[null,null,"Deslocações em serviço","- Autorização da deslocação sem documentação de suporte.",1,2,1,"Validação de todo o processo pelo superior hierárquico.","Não existência de pagamentos de ajudas de transporte indevidos.","A partir de fevereiro/2023","Presidente do Conselho Administrativo",2,"-","-","-","-","-","-","-",4,1,"Minimizado o GR",8,1.3333333333333333,"Não satisfatório ","mantém o mesmo GR"]
[null,null,"Emissão de declarações ou certidões","- Falsificação de declarações ou certidões por funcionário (conteúdo falso ou alterado)",2,3,2,"Verificação e validação pela Coordenadora Técnica, de todas as declarações ou certidões emitidas pelos Serviços Administrativos.","Não existência de trabalhadores favorecidos por falsas declarações.","A partir de fevereiro/2023","Coordenadora Técnica",2,"-","-","-","-","-","-","-",4,2,"Minimizado o GR",16,2.6666666666666665,"Satisfatório","Diminui em 1 o GR"]
[null,null,"Processamento de remunerações/abonos","Realização de pagamentos indevidos ou deficiente processamento, com erros ou omissões.",2,3,2,"´- Implementar mecanismos de conferência com dupla verificação do registo da assiduidade dos trabalhadores;\n´-Validar os registos de dados de novos trabalhadores e as atualizações dos dados pessoais dos trabalhadores, com base no vínculo de emprego público.\n´- Realizar verificações aleatórias pelo Presidente do Conselho Administrativo.\n","Inexistência ou diminuição de erros/omissões no processamento das remunerações/abonos","A partir de fevereiro/2023","Presidente do Conselho Administrativo/Técnica Superior e a Assistente Técnica da área de vencimentos",2,"-","-","-","-","-","-","-",4,2,"Minimizado o GR",16,2.6666666666666665,"Satisfatório","Diminui em 1 o GR"]
["Conselho Administrativo/Conselho Executivo/Serviços Administrativos/Ação Social Escolar","Área de alunos","Matrícula e renovação matrícula (alunos provenientes do estrangeiro)","Atribuir equivalência de habilitações sem a existência de um documento comprovativo das habilitações adquiridas pelo aluno.",2,2,2," Assegurar o cumprimento do decreto-Lei n.º 227/2005, de 28/12.","Assegurar o correto ingresso do aluno no ensino básico e secundário do sistema educativo português.","A partir de fevereiro/2023","Elemento do Conselho Executivo responsável pela área de alunos",2,"-","-","-","-","-","-","-",4,2,"Minimizado o GR",16,2.6666666666666665,"Satisfatório","Diminui em 1 o GR"]
[null,null,"Avaliação (registos)","-  Falsificação de certficados de habilitações e/ou registos biográficos emitidos.\n(alteração de notas)\n",1,3,2,"- Verificação do documento, pela Coordenadora Técnica;\n- Validação do documento, por um elemento do Conselho Executivo, verificado pelo registo biográfico que consta no processo do aluno.","Não existência de alunos com falsas habilitações.","A partir de fevereiro/2023","Conselho Executivo/Serviços Administrativos",2,"-","-","-","-","-","-","-",4,2,"Minimizado o GR",16,2.6666666666666665,"Satisfatório","Diminui em 1 o GR"]
[null,null,"Emissão de certificados, declarações e certidões","- Falsificação de certficados, declarações ou certidões por funcionário (conteúdo falso ou alterado).",2,3,2,"Verificação e validação pela Coordenadora Técnica, de todas as declarações ou certidões emitidas pelos Serviços Administrativos.","Não existência de alunos e Encarregados de Educação favorecidos por falsas declarações.","A partir de fevereiro/2023","Conselho Executivo/Coordenadora Técnica",2,"-","-","-","-","-","-","-",4,2,"Minimizado o GR",16,2.6666666666666665,"Satisfatório","Diminui em 1 o GR"]
[null,null,"Atribuição de escalão ASE","Alteração de benefícios dos apoios decorrentes no âmbito da ação social escolar, sem critérios definidos.",1,3,2,"\n- Sensibilizar as assistentes técnicas da área da ASE para o cumprimento da legislação, nomeadamente, existência de documentos comprovativos da alteração requerida.\n- Validação pelo Conselho Executivo da alteração dos escalões de apoio;","Não existência de alunos favorecidos por tratamento diferenciado.","A partir de fevereiro/2023","Elemento do Conselho Executivo responsável pelos serviços da ASE",2,"-","-","-","-","-","-","-",4,2,"Minimizado o GR",16,2.6666666666666665,"Satisfatório","Diminui em 1 o GR"]
["Conselho Executivo/Serviços Administrativos","Gestão pedagógica da Escola","Distribuição da componente letiva/não letiva","Favorecimento de docentes pelo grau de familiaridade ou amizade.",2,2,2," Assegurar o cumprimento do previsto no Estatuto da Carreira Docente da RAM, na Lei Geral do Trabalho em Funções Públicas e no Regulamento Interno.","Não existência de docentes favorecidos por tratamento diferenciado.","A partir de fevereiro/2023","Presidente do Conselho Executivo",2,"-","-","-","-","-","-","-",4,2,"Minimizado o GR",16,2.6666666666666665,"Satisfatório","Diminui em 1 o GR"]
[null,null,"Atribuição de apoios pedagógicos","Favorecimento a alunos que não precisam de apoio pedagógico, em detrimento de outros que precisam.",1,3,2," Dupla verificação da avaliação final do aluno proposto para o apoio pedagógico acrescido, pelo Diretor de Turma e por um elemento do Conselho Executivo.","Não existência de alunos favorecidos por tratamento diferenciado.","A partir de fevereiro/2023","Elemento do Conselho Executivo e o Diretor de turma",2,"-","-","-","-","-","-","-",4,2,"Minimizado o GR",16,2.6666666666666665,"Satisfatório","Diminui em 1 o GR"]
[null,null,"Exames/vigilâncias","Intervenção em processos em \nsituação de impedimento (ex. por \nfamiliares). ",1,3,2,"´- Identificação dos docentes que são encarregados de educação/familares, por parte dos serviços administrativos, prevenindo o conflito de interesses.","Não existência de alunos favorecidos por tratamento diferenciado.","A partir de fevereiro/2023","Conselho Executivo",2,"-","-","-","-","-","-","-",4,2,"Minimizado o GR",16,2.6666666666666665,"Satisfatório","Diminui em 1 o GR"]
[null,null,"Acesso à reprografia ","Acesso a informação indevida devido ao grau de parentesco. Ex.o trabalhador (docente e não docente) é Encarregado de Educação ou familiar de um aluno/candidato a prova ou entrevista de seleção de recrutamento.",1,3,2,"´- Correlação entre trabalhadores e encarregados de educação ou familiares de alunos/candidatos a prova ou entrevista de seleção de recrutamento, por parte dos serviços administrativos/júri de prova, prevenindo o conflito de interesses;\n´-Restringir o acesso aos serviços a reprografia, aos trabalhadores acima referidos.","Não existência de alunos ou candidatos a prova  e entrevista de seleção, favorecidos por acesso a informação indevida.","A partir de fevereiro/2023","Conselho Executivo",2,"-","-","-","-","-","-","-",4,2,"Minimizado o GR",16,2.6666666666666665,"Satisfatório","Diminui em 1 o GR"]
["Conselho Administrativo/Serviços Administrativos","Aquisição de bens e serviços","Procedimentos de aquisição ","Inobservância de formalidades prévias ao início do procedimento pré- contratual e/ou dos requisitos legais definidos para a adoção do tipo de procedimento; ",2,3,3," - Assegurar que a escolha do procedimento pré-contratual seja devidamente fundamentada, que as peças do procedimento sejam objeto de validação técnica e aprovação pelo órgão competente; garantir que a adjudicação se encontra devidamente fundamentada em relatórios/informações com a aplicação clara do critério de adjudicação e dos eventuais fatores e subfactores que o densificam;\n- Nomeação de Júris diferenciados para cada concurso;\n- Frequentar ações de formação sobre contratação pública.\n","Assegurar a eficácia, economia e transparência dos contratos adjudicados.","A partir de fevereiro/2023","Conselho Administrativo/Serviços Administrativos",2,"-","-","-","-","-","-",3,"-",3,"diminui em 1 o GR",18,3,"Satisfatório","diminui em 1 o GR"]
[null,null,"Aquisição (ajuste direto e regime simplificado)","- Favorecimento a fornecedores, violando os princípios gerais de contratação",2,3,2,"- Apenas realizadas nas situações em que o CCP o permite. \n- Utilização da plataforma eletrónica de contratação pública, sempre que possível, mesmo não sendo legalmente obrigatório. \n- Consulta prévia dos preços de mercado, sempre que possível, a mais de uma entidade, mesmo não sendo legalmente obrigatório.\n","Assegurar a eficácia, economia e transparência dos contratos adjudicados.","A partir de fevereiro/2023","Conselho Administrativo/Serviços Administrativos",2,"-","-","-","-","-","-","-",4,2,"Minimizado o GR",16,2.6666666666666665,"Satisfatório","Diminui em 1 o GR"]
[null,null,"Receção e conferência de bens","- Desvio ou não verificação da quantidade e qualidade de \nmercadorias;\n- Entrega, pelos fornecedores, de quantidades de \nmaterial inferior às contratadas.\n- Retenção de material para uso próprio;",2,2,2,"- Verificação in loco sempre com a presença de quem entrega;\n- Comparação das notas de encomenda com as faturas e registo de receção; \n- Registo permanente de entradas e saídas dos vários armazéns;\n","Garantir um controlo eficaz na verficação de bens aquando da sua receção, de modo a evitar desvios;\nEvitar entregas de material inferior ao contratado; \nNão existência de retenção de bens/materiais para uso próprio. ","A partir de fevereiro/2023","Conselho Administrativo/Serviços Administrativos/Responsável por cada área de atividade.",2,"-","-","-","-","-","-","-",4,2,"Minimizado o GR",16,2.6666666666666665,"Satisfatório","Diminui em 1 o GR"]
[null,null,"Pagamentos de despesas","- Favorecimento de credores;\n- Desvio de dinheiro;\n- Pagamento indevido de encargos.",1,3,2,"- Os pagamentos realizados de acordo com as requisições de fundos disponibilizadas;\n- Dupla autorização exigida para os pagamentos;\n- Controlo, prévio ao pagamento, dos requisitos dos \ndocumentos de despesa apresentados.\n","Prevenir o desvio de fundos e a existência de pagamento de despesas sem a devida base legal e autorização.","A partir de fevereiro/2023","Conselho Administrativo/Tesouraria",2,"-","-","-","-","-","-","-",4,2,"Minimizado o GR",16,2.6666666666666665,"Satisfatório","Diminui em 1 o GR"]
["Conselho Administrativo/Serviços Administrativos","Arrecadação de receita","Taxas, comparticipações e coimas \n(Serviços administrativos e ASE)","Cobrança indevida resultante do favorecimento no não pagamento de taxas, comparticipações e coimas ao requerente.",2,3,3,"Recibo emitido, anexado ao documento que fica no processo do trabalhador/aluno.","Não existência de cobrança indevida de receitas.","A partir de fevereiro/2023","Coordenadora Técnica",2,"-","-","-","-","-","-",3,"-",3,"diminui em 1 o GR",18,3,"Satisfatório","diminui em 1 o GR"]
[null,null,"Receita cobrada ASE (bufete, almoços, vinhetas de transporte, papelaria,…)","Processamento indevido resultante de erros na contabilização da receita.",2,3,3,"- Segregação de funções nas diversas etapas de cobrança (quem cobra não verifica a receita diária do fecho de  caixa); \n - Promoção de sistemas de controlo interno: conferência de processamentos e de valores numa base de amostragem /auditorias internas.","Não existência de erros na contabilização da receita.","A partir de fevereiro/2023","Presidente do Conselho Administrativo/Assistente Técnica da área dos serviços da ASE.",2,"-","-","-","-","-","-",3,"-",3,"diminui em 1 o GR",18,3,"Satisfatório","diminui em 1 o GR"]
[null,null,"Receita cobrada na reprografia","Processamento indevido resultante de erros na contabilização da receita.",2,3,3,"- Segregação de funções nas diversas etapas de cobrança (quem cobra não verifica a receita diária do fecho de  caixa); \n - Promoção de sistemas de controlo interno: conferência de processamentos e de valores numa base de amostragem /auditorias internas.","Não existência de erros na contabilização da receita.","A partir de fevereiro/2023","Presidente do Conselho Administrativo/Assistente Técnica da área dos serviços da ASE.",2,"-","-","-","-","-","-",3,"-",3,"diminui em 1 o GR",18,3,"Satisfatório","diminui em 1 o GR"]
[null,null,"Transportes escolares","Favorecimento na atribuição de transporte escolar ao aluno que não reune as condições previstas no regulamento da ASE.",1,3,2,"Validação de todo o processo pelo superior hierárquico.","- Assegurar o cumprimento do regulamento da ASE;\n- Não existência de alunos favorecidos por tratamento diferenciado.","A partir de fevereiro/2023","Presidente do Conselho Administrativo/Assistente Técnica da área dos serviços da ASE.",2,"-","-","-","-","-","-","-",4,2,"Minimizado o GR",16,2.6666666666666665,"Satisfatório","Diminui em 1 o GR"]
["Conselho Administrativo/Conselho Executivo/Serviços Administrativos/Áreas Pedagógicas, Técnicas e Operacionais","Património – Cadastro e inventário","Registo"," -Apropriação indevida de bens (não registar a entrada de armazém/compras);\n- Desaparecimento de bens (não registar a saída/vendas).",2,2,2,"  - Assegurar a assinatura de termo de responsabilidades na distribuição de bens/equipamentos;\n  - Efetuar controlo de consumos, aferindo desvios  relativamente  aos  consumos médios;\n - Promoção de sistemas de controlo interno: conferência física anual de inventários de cada área de atividade, numa base de amostragem /auditorias internas.","Não existência de apropriação de bens públicos;\n- Não existência de desaparecimento de bens.","A partir de fevereiro/2023","Conselho Administrativo/Serviços Administrativos/Responsável por cada área de atividade.",2,"-","-","-","-","-","-","-",4,2,"Minimizado o GR",16,2.6666666666666665,"Satisfatório","Diminui em 1 o GR"]
[null,null,"Inventário","- Falhas na inventariação e no controlo dos bens , que propiciem o furto ou outras condutas ilícitas em benefício o próprio ou de\nterceiros.",2,2,2," - Manter o inventário atualizado incluindo os novos bens; \n - Reconciliação dos registos contabilísticos com os registos do inventário; \n - Conferências físicas anuais para verificar se os bens estão inventariados.","Garantir o controlo dos bens inventariáveis, de modo a evitar desvios entre os registos contabilísticos e as contagens físicas.","A partir de fevereiro/2023","Conselho Administrativo/Serviços Administrativos/Responsável por cada área de atividade.","-",1,"-","A implementação parcial deve-se ao fato de não terem sido realizadas auditorias internas","-","-",2,"-","-",2,"Diminui ligeiramente o GR",4,0.66666666666666663,"Não satisfatório ","mantém o mesmo GR"]
[null,null,"Abates"," - Abates sem a autorização do órgão competente;",2,3,3,"Verificação sobre se a autorização de abate foi proferido pelo Órgão com competências para o efeito.","Abates Indevidos e apropriação de bens para abate.","A partir de fevereiro/2023","Conselho Executivo","-","-",0,"A não implementação deve-se ao fato da inexistência de abates.",0,"-","-","-","-",3,"-",0,0,"Sem avaliação do resultado","-"]
[null,null,"Transferências/cedências de bens/equipamentos"," - Cedência de equipamento por pessoa ou órgão sem competência;\n- Utilização indevida dos bens públicos",2,2,2," -Validação da autorização de cedência pelo Conselho Executivo ou por quem este designar; \n- Verificação das competências de quem autorizou a cedência do equipamento; \n- Auditorias internas, sempre que se justifique.","Evitar a cedência de equipamento \npor pessoa ou órgão sem \ncompetência.","A partir de fevereiro/2023","Conselho Executivo",2,"-","-","-","-","-","-","-",4,2,"Minimizado o GR",16,2.6666666666666665,"Satisfatório","Diminui em 1 o GR"]
[null,null,"Donativos ","A não contabilização dos bens doados podem propiciar o furto ou outras condutas ilícitas em benefício próprio ou de terceiros\n ",1,3,2,"- Contabilização das doações à escola, obrigando a um processo formal de aceitação;\n- Verificação periódica dos registos/inventário no SNC-AP.","- Assegurar os procedimentos legais previstos para a Gestão e Contabilidade Pública, no ambito do SNC-AP;\n\n- Garantir o registo dos bens doados, de modo a evitar o desaparecimento /apropriação de bens públicos.","A partir de fevereiro/2023","Conselho Executivo",2,"-","-","-","-","-","-","-",4,2,"Minimizado o GR",16,2.6666666666666665,"Satisfatório","Diminui em 1 o GR"]
[null,null,"Utilização das instalações"," - Cedência de instalações por pessoa ou órgão sem competência;\n- Utilização indevida de instalações públicas.",1,2,1,"- Validação da autorização de cedência pela Tutela e/ou Conselho Executivo.","Evitar a cedência de utilização de instalações\npor pessoa ou órgão sem \ncompetência.","A partir de fevereiro/2023","Conselho Executivo",2,"-","-","-","-","-","-","-",4,1,"Minimizado o GR",8,1.3333333333333333,"Não satisfatório ","mantém o mesmo GR"]

{"sheet":"Gráficos","index":1,"n_rows":99,"n_cols":8,"rows_kept":99,"cut":false,"hidden":false,"merged":[[0,1,0,3],[6,1,6,5],[61,2,61,6],[74,1,74,4],[89,1,89,6]]}
[null,"Implementação das medidas"]
[null,"Implementado na totalidade","Implementado parcialmente","Não implementado"]
[null,29,2,2,{"$f":"+D3+C3+B3","v":33},{"$f":"+E3-33","v":0}]
[]
[]
[]
[null,"Avaliação da implementação das medidas"]
[null,"Sem avaliação","Não Satisfatório","Pouco Satisfatório","Satisfatório","Muito satisfatório"]
[null,2,null,2,4,25]
[]
[]
[{"$nulls":5},{"$f":"+B9+C9+D9+E9+F9","v":33}]
[{"$nulls":5},{"$f":"+F12-E3","v":0}]
[]
[]
[]
[]
[]
[null,"Grau de risco","Implementado na totalidade","Implementado parcialmente","Não implementado"]
[null,"Fraco",2,0,0]
[null,"Moderado",23,2,0]
[null,"Elevado",4,0,2]
[null,"Totais",{"$f":"SUM(C20:C22)","v":29},{"$f":"SUM(D20:D22)","v":2},2,{"$f":"SUM(C23:E23)","v":33}]
[]
[null,"verificação",{"$f":"+C23-B3","v":0},{"$f":"+D23-C3","v":0},{"$f":"+E23-D3","v":0}]
{"$rows_empty":11}
[null,"Grau de risco","Implementado parcialmente","Não implementado"]
[null,"Fraco",0,0]
[null,"Moderado",2,0]
[null,"Elevado",0,2]
[null,null,{"$f":"SUM(C38:C40)","v":2},2]
[null,"verificação",{"$f":"+C41-C3","v":0},{"$f":"+D41-D3","v":0}]
{"$rows_empty":7}
[null,"Implementação por tipo de risco"]
[null,null,"Implementado na totalidade","Implementado parcialmente","Não implementado"]
[null,"Área de Pessoal",9,1,1,{"$f":"+E52+D52+C52","v":11}]
[null,"Área de alunos",4,0,0,{"$f":"+E53+D53+C53","v":4}]
[null,"Gestão pedagógica da Escola",4,0,0,4]
[null,"Aquisição de bens e serviços",4,0,0,4]
[null,"Arrecadação de receita",4,0,0,4]
[null,"Património – Cadastro e inventário",4,1,1,6]
[null,null,{"$f":"SUM(C52:C57)","v":29},{"$f":"SUM(D52:D57)","v":2},{"$f":"SUM(E52:E57)","v":2},{"$f":"SUM(C58:E58)","v":33}]
[null,"verificação",{"$f":"+C58-C23","v":0},{"$f":"+D58-D23","v":0},{"$f":"+E58-E23","v":0},{"$f":"+F58-E3","v":0}]
[]
[]
[null,null,"Resultado da implementação (Por medidas)"]
[null,null,"Sem avaliação","Não Satisfatório","Pouco Satisfatório","Satisfatório","Muito satisfatório"]
[{"$f":"+(C64+D64+E64+F64+G64)-F52","v":0},"Área de Pessoal",1,0,1,0,9]
[{"$f":"+(C65+D65+E65+F65+G65)-F53","v":0},"Área de alunos",0,0,0,0,4]
[{"$f":"+(C66+D66+E66+F66+G66)-F54","v":0},"Gestão pedagógica da Escola",0,0,0,0,4]
[{"$f":"+(C67+D67+E67+F67+G67)-F55","v":0},"Aquisição de bens e serviços",0,0,0,1,3]
[0,"Arrecadação de receita",0,0,0,3,1]
[{"$f":"+(C69+D69+E69+F69+G69)-F57","v":0},"Património – Cadastro e inventário",1,0,1,0,4]
[null,null,{"$f":"SUM(C64:C69)","v":2},{"$f":"SUM(D64:D69)","v":0},{"$f":"SUM(E64:E69)","v":2},{"$f":"SUM(F64:F69)","v":4},{"$f":"SUM(G64:G69)","v":25}]
[null,"verificação",{"$f":"+C70-B9","v":0},{"$f":"+D70-C9","v":0},{"$f":"+E70-D9","v":0},{"$f":"+F70-E9","v":0},{"$f":"+G70-F9","v":0},{"$f":"SUM(C70:G70)","v":33}]
[{"$nulls":6},{"$f":"+(C70+D70+E70+F70+G70)-E3","v":0}]
[]
[]
[null,"Por Risco"]
[null,null,"Fraco","Moderado","Elevado"]
[null,"Área de Pessoal",1,9,1,{"$f":"+C77+D77+E77","v":11},{"$f":"+F77-F52","v":0}]
[null,"Área de alunos",0,4,0,{"$f":"+C78+D78+E78","v":4},{"$f":"+F78-F53","v":0}]
[null,"Gestão pedagógica da Escola",0,4,0,4,0]
[null,"Aquisição de bens e serviços",0,3,1,4,0]
[null,"Arrecadação de receita",0,1,3,4,{"$f":"+F81-F56","v":0}]
[null,"Património – Cadastro e inventário",1,4,1,6,0]
[null,null,{"$f":"SUM(C77:C82)","v":2},{"$f":"SUM(D77:D82)","v":25},{"$f":"SUM(E77:E82)","v":6},{"$f":"SUM(C83:E83)","v":33}]
[null,null,{"$f":"+C83-(C20+D20+E20)","v":0},{"$f":"+D83-(C21+D21+E21)","v":0},{"$f":"+E83-(C22+D22+E22)","v":0},{"$f":"+F83-E3","v":0}]
[]
[]
[]
[]
[]
[null,"Avaliação final de cada risco indicado"]
[null,null,"Sem avaliação do resultado","Não satisfatório","Pouco satisfatório","Satisfatório","Muito satisfatório"]
[{"$f":"+H92-F52","v":0},"Área de Pessoal",1,2,0,8,0,{"$f":"+G92+F92+E92+D92+C92","v":11}]
[{"$f":"+H93-F53","v":0},"Área de alunos",0,0,0,4,0,{"$f":"+G93+F93+E93+D93+C93","v":4}]
[0,"Gestão pedagógica da Escola",0,0,0,4,0,4]
[0,"Aquisição de bens e serviços",0,0,0,4,0,4]
[0,"Arrecadação de receita",0,0,0,4,0,4]
[0,"Património – Cadastro e inventário",1,2,0,3,0,6]
[null,null,{"$f":"SUM(C92:C97)","v":2},{"$f":"SUM(D92:D97)","v":4},{"$f":"SUM(E92:E97)","v":0},{"$f":"SUM(F92:F97)","v":27},{"$f":"SUM(G92:G97)","v":0},{"$f":"SUM(C98:G98)","v":33}]
[null,null,{"$f":"C98/H$98","v":6.0606060606060608E-2},{"$f":"D98/H98","v":0.12121212121212122},{"$f":"E98/H98","v":0},{"$f":"F98/H98","v":0.81818181818181823},{"$f":"G98/H98","v":0},{"$f":"+H98-E3","v":0}]